bitfinex/quotes_SOLUSD_20250922
["timestamp","ask_amount","ask_price","bid_price","bid_amount"]
[1758554607438,36.34,220.99,220.96,4.52570601]
[1758554607843,36.34,220.99,220.96,5.19570601]
[1758554608027,38.84234719,220.99,220.96,5.19570601]
[1758554609314,38.84234719,220.99,220.96,4.52570601]
[1758554609527,2.50234719,220.98,220.94,4.7259368]
[1758554609752,2.50234719,220.98,220.94,5.3959368]
[1758554609935,38.84234719,220.99,220.95,0.67]
[1758554610138,38.84234719,220.99,220.94,4.7259368]
[1758554610139,2.50234719,220.99,220.96,0.67]
[1758554610330,36.34,220.98,220.97,0.67]
[1758554610849,26.0,221.06,220.97,0.67]
[1758554610850,2.50234719,221.01,220.97,5.19550119]
[1758554611145,36.34,221.0,220.98,0.67]
[1758554611327,36.34,220.99,220.98,0.67]
[1758554612541,36.34,220.99,220.98,4.5252964]
[1758554614551,36.34,220.99,220.97,4.52550119]
[1758554614779,36.34,220.99,220.94,0.2]
[1758554614780,2.50234719,220.98,220.95,4.52583929]
[1758554616349,38.84234719,220.99,220.95,5.19583929]
[1758554618428,36.34,220.99,220.96,0.67]
[1758554618657,36.34,220.99,220.97,0.67]
[1758554618987,36.34,220.99,220.98,0.67]
[1758554619287,36.34,220.99,220.96,0.67]
[1758554620195,36.34,220.99,220.97,0.67]
[1758554620477,36.34,220.99,220.98,4.5252964]
[1758554621788,36.32,220.99,220.98,5.1952964]
[1758554622552,36.32,220.99,220.94,13.79559401]
[1758554622553,39.49234719,220.99,220.94,0.2]
[1758554622785,38.82234719,220.99,220.95,0.67]
[1758554623571,3.17234719,220.98,220.94,0.2]
[1758554623981,2.50234719,220.97,220.94,0.2]
[1758554624173,36.32,220.96,220.94,4.72610219]
[1758554624792,36.32,220.96,220.94,0.2]
[1758554625167,36.32,220.96,220.94,4.72603338]
[1758554625981,36.32,220.96,220.95,0.67]
[1758554626168,36.32,220.97,220.95,0.67]
[1758554626370,36.32,220.97,220.96,0.67]
[1758554626758,36.32,220.97,220.96,5.19570601]
[1758554627180,36.32,220.99,220.96,30.10556504]
[1758554627490,36.32,221.0,220.97,0.67]
[1758554628167,36.32,221.0,220.96,29.43556504]
[1758554628390,36.32,221.0,220.96,30.10556504]
[1758554629692,3.17234719,221.02,220.97,13.59559401]
[1758554629985,36.3,221.01,220.98,0.67]
[1758554630291,36.3,221.01,220.99,0.67]
[1758554630662,36.3,221.01,220.97,14.26559401]
[1758554630862,36.3,221.01,220.98,4.5252964]
[1758554631186,36.3,221.01,220.98,5.1952964]
[1758554631562,36.3,221.01,220.99,0.67]
[1758554631882,0.67,221.07,221.0,0.67]
[1758554632089,38.80234719,221.06,221.0,0.67]
[1758554632379,2.50234719,221.05,221.0,0.67]
[1758554632580,35.12776355,221.06,220.98,31.93647861]
[1758554632795,3.17234719,221.05,221.0,15.83710406]
[1758554632964,3.17234719,221.05,221.0,16.50710406]
[1758554633165,37.63011074,221.06,221.01,0.67]
[1758554633501,37.63011074,221.06,221.02,0.67]
[1758554633882,2.50234719,221.07,221.02,0.67]
[1758554634067,0.67,221.09,221.03,0.67]
[1758554634389,2.50234719,221.06,221.0,13.59559401]
[1758554634692,2.50234719,221.05,221.0,13.59559401]
[1758554634893,36.3,221.04,221.01,4.52468214]
[1758554635090,39.47234719,221.04,221.01,4.52468214]
[1758554635275,39.47234719,221.04,220.99,4.52489901]
[1758554635479,0.67,221.03,220.99,4.52489901]
[1758554635669,0.67,221.02,220.99,4.52489901]
[1758554635995,38.80234719,221.04,220.99,4.52489901]
[1758554636198,39.47234719,221.04,220.99,4.52489901]
[1758554636679,0.67,221.03,220.99,4.52489901]
[1758554636871,38.80234719,221.04,220.99,0.67]
[1758554637068,36.3,221.04,220.99,0.67]
[1758554637314,37.02,221.04,220.99,0.67]
[1758554637498,39.52234719,221.04,220.99,0.67]
[1758554637800,39.52234719,221.04,220.98,4.5252964]
[1758554637966,37.02,221.04,220.98,5.2452964]
[1758554638391,37.02,221.04,220.98,16.55853741]
[1758554638980,36.3,221.04,220.98,16.55853741]
[1758554639305,36.3,221.04,220.98,21.09853741]
[1758554639472,36.3,221.04,220.98,16.55853741]
[1758554639672,37.02,221.04,220.98,16.55853741]
[1758554640370,37.02,221.04,220.98,15.83853741]
[1758554641697,36.3,221.04,220.99,0.72]
[1758554641879,36.3,221.04,221.0,0.72]
[1758554642085,0.72,221.06,220.98,19.0608846]
[1758554642282,39.50234719,221.05,220.99,0.72]
[1758554642681,2.50234719,221.04,220.98,4.5252964]
[1758554642884,2.50234719,221.03,220.98,4.5252964]
[1758554643087,3.22234719,221.03,220.98,4.5252964]
[1758554643782,2.50234719,221.03,220.98,4.5252964]
[1758554643990,0.72,221.02,220.98,4.5252964]
[1758554644189,36.28,221.01,220.98,4.5252964]
[1758554644587,3.22234719,221.0,220.94,13.79559401]
[1758554644895,2.50234719,220.98,220.94,0.2]
[1758554645097,37.0,220.97,220.94,4.72608433]
[1758554645280,36.28,220.97,220.94,0.2]
[1758554645480,36.28,220.97,220.95,0.69]
[1758554645800,36.28,220.97,220.94,4.7261121]
[1758554646000,36.28,220.97,220.94,5.4161121]
[1758554646307,36.26,220.96,220.95,0.69]
[1758554646608,36.26,220.96,220.95,7.71825802]
[1758554647191,2.50234719,221.04,220.96,13.59559401]
[1758554647384,0.71,221.05,220.99,2.50234719]
[1758554647583,36.26,221.03,220.99,3.19234719]
[1758554647888,36.26,221.03,220.99,0.69]
[1758554648400,36.26,221.03,220.98,13.59559401]
[1758554648588,36.97,221.03,220.99,4.52509163]
[1758554648785,0.71,221.03,220.99,4.52509163]
[1758554648985,36.26,221.02,220.99,4.52509163]
[1758554649689,0.71,221.01,220.99,4.52509163]
[1758554650095,37.86261241,221.02,220.99,4.52509163]
[1758554650300,0.71,221.01,220.99,4.52509163]
[1758554650711,36.26,221.02,220.97,15.83901471]
[1758554650895,36.26,221.02,220.97,16.52901471]
[1758554652209,36.97,221.02,220.97,11.31351352]
[1758554652392,36.97,221.02,220.95,4.52591083]
[1758554652393,0.71,221.01,220.96,13.59559401]
[1758554652589,1.60261241,220.99,220.94,18.3216761]
[1758554652820,38.57261241,220.98,220.94,4.72608209]
[1758554652996,36.26,220.97,220.94,4.72608209]
[1758554654513,38.57261241,220.97,220.94,0.2]
[1758554655106,2.31261241,220.96,220.94,0.2]
[1758554656198,2.31261241,220.95,220.94,0.2]
[1758554656517,36.26,220.97,220.94,3.58811291]
[1758554656518,1.60261241,220.96,220.94,3.58811291]
[1758554656695,1.60261241,220.96,220.95,3.38811291]
[1758554656891,6.12831842,220.96,220.95,3.38811291]
[1758554657199,6.83831842,220.96,220.95,3.38811291]
[1758554658324,2.31261241,220.96,220.95,3.38811291]
[1758554658697,6.83831842,220.96,220.95,3.38811291]
[1758554659102,0.71,220.96,220.95,3.38811291]
[1758554659399,238.70127412,221.23,220.95,8.60396296]
[1758554659400,11.3076371,221.09,220.95,8.60396296]
[1758554659600,3.31899761,221.08,220.96,5.68072532]
[1758554659827,1.60261241,221.02,220.97,4.07811291]
[1758554660013,1.60261241,221.0,220.98,3.38811291]
[1758554660209,0.71,221.0,220.99,3.38811291]
[1758554660410,36.24,221.01,220.99,3.38811291]
[1758554660622,36.24,221.01,221.0,3.38811291]
[1758554661194,37.84261241,221.01,221.0,3.38811291]
[1758554661412,43.07729455,221.01,221.0,3.38811291]
[1758554662506,42.36729455,221.01,221.0,3.38811291]
[1758554662705,1.60261241,221.01,221.0,3.38811291]
[1758554663020,37.84261241,221.01,221.0,3.38811291]
[1758554663202,38.55261241,221.01,221.0,3.38811291]
[1758554663710,43.07729455,221.01,221.0,3.38811291]
[1758554665327,26.0,220.98,220.94,0.2]
[1758554665526,1.60261241,220.96,220.95,3.38413144]
[1758554666503,6.12831842,220.96,220.95,3.38413144]
[1758554667224,6.81831842,220.96,220.95,3.38413144]
[1758554668422,1.60261241,220.96,220.95,3.38413144]
[1758554669707,40.76568033,220.97,220.95,3.38413144]
[1758554669925,1.60261241,220.96,220.94,0.2]
[1758554670121,40.76568033,220.97,220.95,3.38239608]
[1758554670319,40.76568033,220.97,220.96,3.38239608]
[1758554670825,41.45568033,220.97,220.96,3.38239608]
[1758554671341,43.05829274,220.97,220.96,3.38239608]
[1758554673215,26.0,220.95,220.94,0.2]
[1758554673414,63.82261241,220.95,220.94,3.58092431]
[1758554673623,28.29261241,220.95,220.94,3.58092431]
[1758554673810,64.51261241,220.95,220.94,3.58092431]
[1758554674125,28.29261241,220.95,220.94,3.58092431]
[1758554674325,64.51261241,220.95,220.94,3.58092431]
[1758554674738,32.81852324,220.95,220.94,3.58092431]
[1758554674904,69.03852324,220.95,220.94,3.58092431]
[1758554675528,68.34852324,220.95,220.94,3.58092431]
[1758554675725,69.03852324,220.95,220.94,3.58092431]
[1758554677621,36.22,220.95,220.94,3.58092431]
[1758554677827,37.82261241,220.95,220.94,3.58092431]
[1758554680124,42.34852324,220.95,220.94,3.58092431]
[1758554680931,43.03852324,220.95,220.94,3.58092431]
[1758554682233,42.34852324,220.95,220.94,3.58092431]
[1758554682729,43.03852324,220.95,220.94,3.58092431]
[1758554683440,42.34852324,220.95,220.94,3.58092431]
[1758554683743,62.2,220.95,220.94,3.58092431]
[1758554684035,1.60261241,220.95,220.94,4.26092431]
[1758554684344,37.80261241,220.95,220.94,4.26092431]
[1758554685411,36.2,220.95,220.94,4.26092431]
[1758554685613,37.80261241,220.95,220.94,4.26092431]
[1758554686626,36.2,220.95,220.94,4.26092431]
[1758554686826,37.80261241,220.95,220.94,4.25978844]
[1758554687223,6.41044964,221.04,220.94,20.10119333]
[1758554687528,1.60261241,220.98,220.95,4.05978844]
[1758554687732,36.2,220.97,220.96,4.05978844]
[1758554689236,36.2,220.97,220.96,8.58549445]
[1758554690322,37.80261241,220.97,220.96,3.37978844]
[1758554690906,37.80261241,220.97,220.96,4.05978844]
[1758554691221,37.80261241,220.97,220.96,8.58549445]
[1758554691424,1.60261241,220.97,220.96,8.58549445]
[1758554691635,37.78261241,220.97,220.96,8.58549445]
[1758554692127,36.18,220.97,220.96,8.58549445]
[1758554692526,0.69,221.07,220.96,19.89975947]
[1758554692717,1.60261241,221.02,220.97,4.05978844]
[1758554692906,36.18,221.01,220.98,4.05978844]
[1758554693111,37.78261241,221.01,220.99,4.05978844]
[1758554693310,37.78261241,221.01,221.0,8.58467531]
[1758554695421,1.60261241,221.01,221.0,8.58467531]
[1758554695617,36.18,221.01,221.0,22.18026932]
[1758554697431,36.7,221.11,221.01,13.59559401]
[1758554697640,37.76261241,221.1,221.03,13.59559401]
[1758554697828,37.76261241,221.1,221.04,4.04978844]
[1758554698028,37.76261241,221.1,221.05,0.67]
[1758554698029,1.60261241,221.08,221.05,0.67]
[1758554698242,36.16,221.1,221.06,0.67]
[1758554698448,1.60261241,221.08,221.06,0.67]
[1758554699046,37.76261241,221.1,221.08,4.5232495]
[1758554699238,37.76261241,221.1,221.08,5.1932495]
[1758554699441,36.16,221.1,221.09,0.67]
[1758554699626,36.16,221.1,221.09,4.05018062]
[1758554699826,36.16,221.1,221.09,0.67]
[1758554700547,36.16,221.1,221.09,4.04718105]
[1758554701152,36.16,221.1,221.09,8.57022596]
[1758554701328,0.2,221.21,221.13,13.59559401]
[1758554701523,0.2,221.21,221.14,6.40989451]
[1758554701723,19.06,221.2,221.15,3.37718105]
[1758554701948,19.06,221.2,221.16,4.04718105]
[1758554702153,19.06,221.2,221.17,4.04718105]
[1758554702348,19.06,221.2,221.18,3.37718105]
[1758554702540,19.73,221.2,221.19,3.37718105]
[1758554702742,37.74261241,221.2,221.19,3.37718105]
[1758554703341,36.14,221.2,221.19,3.37718105]
[1758554703736,36.14,221.2,221.19,0.67]
[1758554704050,36.14,221.2,221.19,19.23163973]
[1758554704247,36.14,221.2,221.19,17.62902732]
[1758554704635,0.2,221.21,221.19,19.23163973]
[1758554704841,0.2,221.21,221.2,4.03343331]
[1758554705250,0.2,221.21,221.2,8.55422897]
[1758554706142,0.2,221.21,221.2,23.75243539]
[1758554706647,0.2,221.21,221.2,22.14982298]
[1758554707251,0.2,221.21,221.2,17.62902732]
[1758554707429,0.2,221.21,221.2,3.36343331]
[1758554707752,1.80261241,221.21,221.16,13.59559401]
[1758554707949,1.60261241,221.2,221.17,4.00679109]
[1758554708148,36.12,221.19,221.18,3.34679109]
[1758554708954,36.12,221.19,221.18,17.6023851]
[1758554709168,0.2,221.21,221.19,13.59559401]
[1758554709451,0.2,221.21,221.2,23.06579317]
[1758554709756,0.2,221.21,221.2,22.12318076]
[1758554710260,0.2,221.21,221.2,23.72579317]
[1758554710639,0.2,221.21,221.2,24.62193067]
[1758554711341,0.2,221.21,221.2,22.12318076]
[1758554711529,0.2,221.21,221.2,24.62193067]
[1758554712346,0.2,221.21,221.2,21.27513958]
[1758554712548,0.2,221.21,221.2,24.60950098]
[1758554712739,0.2,221.21,221.2,18.77638967]
[1758554712938,0.2,221.21,221.2,21.27513958]
[1758554713335,0.2,221.21,221.2,24.6079485]
[1758554713736,0.2,221.21,221.2,21.27513958]
[1758554717645,0.2,221.21,221.2,18.11638967]
[1758554717846,0.2,221.21,221.2,21.27513958]
[1758554719660,0.2,221.21,221.2,20.61513958]
[1758554719879,0.2,221.21,221.2,13.59559401]
[1758554720046,0.2,221.21,221.18,4.52102531]
[1758554720670,0.2,221.21,221.18,5.18102531]
[1758554721057,0.2,221.21,221.19,16.75434392]
[1758554721581,0.2,221.21,221.2,18.77638967]
[1758554721867,0.2,221.21,221.2,4.52079566]
[1758554722268,0.2,221.21,221.2,7.67954557]
[1758554722444,0.2,221.21,221.2,2.49874991]
[1758554722640,0.87,221.21,221.15,13.28018552]
[1758554722865,0.2,221.21,221.16,19.42377854]
[1758554723047,0.2,221.21,221.17,3.33006521]
[1758554723559,0.2,221.21,221.17,6.48881512]
[1758554723850,0.2,221.21,221.17,7.68008674]
[1758554724466,0.2,221.21,221.17,5.18133683]
[1758554725268,0.2,221.21,221.18,4.52115194]
[1758554725649,3.16874991,221.2,221.15,13.5424727]
[1758554725868,3.16874991,221.19,221.14,4.52183267]
[1758554726168,36.06,221.2,221.15,3.99295332]
[1758554726345,36.06,221.2,221.16,3.33295332]
[1758554726744,2.49874991,221.19,221.16,3.33295332]
[1758554726970,3.16874991,221.19,221.14,4.52183267]
[1758554727144,3.16874991,221.19,221.15,3.33470018]
[1758554727350,3.19874991,221.18,221.16,3.33470018]
[1758554727549,0.7,221.17,221.13,4.5221031]
[1758554727863,3.19874991,221.16,221.14,3.3366982]
[1758554728171,3.19874991,221.16,221.12,18.11800749]
[1758554728172,2.49874991,221.16,221.15,3.3366982]
[1758554728468,2.49874991,221.18,221.13,3.3366982]
[1758554728652,2.49874991,221.16,221.14,3.3366982]
[1758554728848,2.49874991,221.16,221.15,3.3366982]
[1758554729050,2.49874991,221.16,221.1,13.57121532]
[1758554729256,2.49874991,221.14,221.11,3.34110302]
[1758554729463,3.19874991,221.14,221.12,3.34110302]
[1758554729662,4.52181777,221.15,221.13,3.34110302]
[1758554729856,4.52181777,221.15,221.08,18.11879501]
[1758554730051,4.52181777,221.15,221.09,3.34195039]
[1758554730270,0.7,221.14,221.09,3.34195039]
[1758554730471,36.76,221.13,221.09,3.34195039]
[1758554730978,2.49874991,221.11,221.09,3.34195039]
[1758554731165,3.19874991,221.11,221.1,3.34195039]
[1758554731761,11.30423307,221.16,221.1,0.69]
[1758554731762,36.06,221.14,221.1,0.69]
[1758554731970,36.06,221.14,221.11,3.34195039]
[1758554732174,36.06,221.13,221.11,3.34195039]
[1758554732977,0.7,221.16,221.11,7.86457896]
[1758554733192,36.26,221.21,221.15,2.49874991]
[1758554733473,36.26,221.21,221.16,5.8407003]
[1758554733787,36.96,221.21,221.17,3.34195039]
[1758554734073,0.2,221.21,221.18,3.34195039]
[1758554734276,36.76,221.2,221.19,3.34195039]
[1758554734475,36.06,221.2,221.19,3.34195039]
[1758554734658,36.06,221.2,221.19,3.3521805]
[1758554734853,39.25874991,221.2,221.16,3.3521805]
[1758554735172,0.7,221.19,221.17,3.3521805]
[1758554735378,0.7,221.19,221.18,3.3521805]
[1758554735559,36.04,221.19,221.18,3.3521805]
[1758554736566,36.74,221.19,221.18,3.3521805]
[1758554736761,36.04,221.19,221.18,3.3521805]
[1758554738200,36.24,221.21,221.18,19.8663489]
[1758554738375,36.24,221.21,221.19,4.0421805]
[1758554738559,36.24,221.21,221.2,3.3521805]
[1758554740565,36.24,221.21,221.2,7.87297616]
[1758554740758,0.2,221.21,221.2,8.56297616]
[1758554740960,36.24,221.21,221.2,11.06172607]
[1758554741154,0.2,221.21,221.2,24.65732008]
[1758554741962,0.2,221.21,221.2,29.19032008]
[1758554742379,0.2,221.21,221.2,24.65732008]
[1758554744270,0.2,221.23,221.2,24.65732008]
[1758554744271,0.2,221.23,221.22,39.59559401]
[1758554744460,0.2,221.23,221.22,49.97952442]
[1758554744661,0.2,221.23,221.22,46.13652442]
[1758554745367,0.2,221.23,221.22,50.65691136]
[1758554745873,0.2,221.23,221.22,21.46816145]
[1758554746080,0.2,221.23,221.22,22.15816145]
[1758554746473,0.2,221.23,221.22,21.46816145]
[1758554746997,0.2,221.23,221.22,3.3521805]
[1758554747282,0.9,221.23,221.22,3.3521805]
[1758554747457,0.2,221.23,221.22,3.3521805]
[1758554750287,0.9,221.23,221.22,3.3521805]
[1758554750477,0.2,221.23,221.22,3.3521805]
[1758554750784,0.2,221.23,221.22,7.87256744]
[1758554751685,0.2,221.23,221.22,3.3521805]
[1758554751880,3.39874991,221.23,221.22,3.3521805]
[1758554752406,0.2,221.23,221.22,3.3521805]
[1758554753095,3.39874991,221.23,221.22,3.3521805]
[1758554754174,0.9,221.23,221.22,3.3521805]
[1758554755189,36.2,221.23,221.22,3.3521805]
[1758554755997,0.2,221.23,221.22,7.87256744]
[1758554756301,36.2,221.23,221.22,8.56256744]
[1758554757190,0.2,221.23,221.22,8.56256744]
[1758554757498,0.2,221.23,221.22,24.65691136]
[1758554757668,0.2,221.23,221.22,17.63777451]
[1758554757871,0.2,221.23,221.22,16.94777451]
[1758554758092,0.2,221.23,221.22,17.63777451]
[1758554758295,0.2,221.23,221.22,20.13652442]
[1758554758501,0.2,221.23,221.22,24.65691136]
[1758554759774,0.2,221.23,221.22,22.15816145]
[1758554760177,0.2,221.23,221.22,21.46816145]
[1758554760378,0.2,221.23,221.22,22.15816145]
[1758554760788,0.2,221.23,221.22,22.18385397]
[1758554760992,0.2,221.23,221.22,21.30473086]
[1758554761192,0.2,221.23,221.22,24.68250478]
[1758554761600,0.2,221.23,221.22,24.68208855]
[1758554761895,0.2,221.23,221.22,21.30473086]
[1758554762091,0.2,221.23,221.22,24.68167532]
[1758554763801,0.2,221.23,221.22,24.68071638]
[1758554764212,0.2,221.23,221.22,16.97157953]
[1758554764510,0.2,221.23,221.22,21.49196647]
[1758554764803,0.2,221.23,221.22,24.68071638]
[1758554764973,0.2,221.23,221.22,21.49196647]
[1758554765603,0.2,221.23,221.22,24.67071638]
[1758554766196,0.2,221.23,221.22,21.49196647]
[1758554766585,0.2,221.23,221.22,16.97157953]
[1758554766796,0.2,221.23,221.22,22.17196647]
[1758554767307,0.2,221.23,221.22,24.67071638]
[1758554770588,0.2,221.23,221.22,28.30344522]
[1758554770989,1e-08,221.23,221.22,28.30344522]
[1758554771216,1e-08,221.23,221.22,23.77044522]
[1758554771878,1e-08,221.23,221.22,23.09044522]
[1758554772983,1e-08,221.23,221.22,21.49196647]
[1758554773316,1e-08,221.23,221.22,23.77044522]
[1758554774811,1e-08,221.23,221.22,28.30344522]
[1758554775996,1e-08,221.23,221.22,28.30318552]
[1758554776382,1e-08,221.23,221.22,23.77018552]
[1758554776605,1e-08,221.23,221.22,28.30318552]
[1758554776799,1e-08,221.23,221.22,23.77018552]
[1758554777203,1e-08,221.23,221.22,21.49170677]
[1758554777416,1e-08,221.23,221.22,23.09018552]
[1758554777786,1e-08,221.23,221.22,23.77018552]
[1758554778207,1e-08,221.23,221.22,21.49170677]
[1758554778399,1e-08,221.23,221.22,18.56979858]
[1758554778601,1e-08,221.23,221.22,16.97131983]
[1758554778815,1e-08,221.23,221.22,18.56979858]
[1758554779310,1e-08,221.23,221.22,23.09018552]
[1758554779523,1e-08,221.23,221.22,23.77018552]
[1758554779733,1e-08,221.23,221.22,23.09018552]
[1758554780187,1e-08,221.23,221.22,21.49170677]
[1758554781400,1e-08,221.23,221.22,23.09018552]
[1758554781608,1e-08,221.23,221.22,23.0965132]
[1758554781791,1e-08,221.23,221.22,21.49803445]
[1758554781985,0.71000001,221.23,221.22,21.49803445]
[1758554782210,1e-08,221.23,221.22,21.49803445]
[1758554785101,1e-08,221.23,221.22,23.7765132]
[1758554785710,1e-08,221.23,221.22,21.49803445]
[1758554786520,1e-08,221.23,221.22,22.17803445]
[1758554786716,1e-08,221.23,221.22,23.7765132]
[1758554787911,1e-08,221.23,221.22,22.17803445]
[1758554788411,1e-08,221.23,221.22,23.7765132]
[1758554788922,1e-08,221.23,221.22,21.49803445]
[1758554790425,1e-08,221.23,221.22,23.8065132]
[1758554791419,1e-08,221.23,221.22,23.8078602]
[1758554794225,1e-08,221.23,221.22,23.0978602]
[1758554794422,1e-08,221.23,221.22,23.8078602]
[1758554795323,1e-08,221.23,221.22,28.3408602]
[1758554795625,0.1,221.29,221.23,13.59559401]
[1758554795827,0.1,221.29,221.27,1.59847875]
[1758554796022,0.1,221.29,221.28,3.3834005]
[1758554796326,0.1,221.29,221.28,7.90256174]
[1758554797208,0.75,221.29,221.28,7.90256174]
[1758554797926,0.1,221.29,221.28,7.90256174]
[1758554798219,1e-08,221.29,221.28,23.0966345]
[1758554798927,1e-08,221.29,221.28,21.49815575]
[1758554799629,1e-08,221.29,221.28,22.20815575]
[1758554800430,1e-08,221.29,221.28,23.80614169]
[1758554801106,0.65000001,221.29,221.28,7.90206893]
[1758554801319,1e-08,221.29,221.28,7.90206893]
[1758554804010,2.24847876,221.29,221.28,7.90206893]
[1758554804411,1.59847876,221.29,221.28,7.90206893]
[1758554804614,1e-08,221.29,221.28,7.90206893]
[1758554805526,1e-08,221.29,221.28,12.43506893]
[1758554805732,1e-08,221.29,221.28,7.90206893]
[1758554805935,1e-08,221.29,221.28,22.20766294]
[1758554806264,1e-08,221.29,221.28,23.80614169]
[1758554806838,1e-08,221.29,221.28,22.20766294]
[1758554807031,1e-08,221.29,221.28,21.49766294]
[1758554808554,1e-08,221.29,221.28,21.49737857]
[1758554809146,1e-08,221.29,221.28,22.20737857]
[1758554811436,1e-08,221.29,221.28,23.80585732]
[1758554813061,0.2,221.35,221.28,23.80585732]
[1758554813062,0.2,221.35,221.28,57.69956663]
[1758554813248,0.2,221.35,221.32,13.59559401]
[1758554813450,0.2,221.35,221.33,3.38262332]
[1758554813649,0.2,221.35,221.34,3.38262332]
[1758554814244,0.2,221.35,221.34,7.90055952]
[1758554815874,0.2,221.35,221.34,21.67013094]
[1758554816568,0.2,221.35,221.34,18.28750762]
[1758554816773,0.2,221.35,221.34,21.66318685]
[1758554820266,0.91,221.35,221.34,21.66318685]
[1758554820446,0.2,221.35,221.34,21.66318685]
[1758554820644,0.2,221.35,221.34,21.66092205]
[1758554820883,0.2,221.35,221.34,35.25651606]
[1758554821053,1e-08,221.35,221.34,37.55499481]
[1758554821263,26.0,221.42,221.34,37.55499481]
[1758554821264,1.79847875,221.43,221.35,13.59559401]
[1758554821461,28.66,221.42,221.37,15.19407276]
[1758554821668,28.66,221.42,221.38,3.37341443]
[1758554821968,28.66,221.42,221.37,15.89407276]
[1758554821969,0.71,221.41,221.37,13.59559401]
[1758554822164,28.66,221.42,221.38,15.80991959]
[1758554822465,28.66,221.42,221.38,16.50991959]
[1758554822672,29.37,221.42,221.38,15.80991959]
[1758554823276,0.71,221.41,221.38,15.80991959]
[1758554824285,28.66,221.42,221.38,17.40839834]
[1758554824464,28.66,221.42,221.39,0.7]
[1758554824664,0.2,221.43,221.4,3.37071992]
[1758554825076,0.91,221.43,221.4,3.37071992]
[1758554825382,0.91,221.43,221.38,15.80991959]
[1758554825582,0.91,221.43,221.38,16.50991959]
[1758554825792,0.2,221.43,221.4,15.80849141]
[1758554826164,0.2,221.43,221.4,16.50849141]
[1758554826504,1e-08,221.43,221.42,15.19407276]
[1758554827000,0.1,221.46,221.42,15.89407276]
[1758554827167,0.1,221.46,221.43,0.7]
[1758554827564,0.1,221.46,221.43,1.59847875]
[1758554827798,0.1,221.46,221.44,4.51589595]
[1758554828098,0.7,221.45,221.44,4.51589595]
[1758554828263,0.1,221.46,221.44,4.51589595]
[1758554828264,0.1,221.46,221.44,8.58649457]
[1758554828464,0.1,221.46,221.44,4.51589595]
[1758554828695,0.2,221.5,221.46,13.59559401]
[1758554828869,0.2,221.55,221.5,13.59559401]
[1758554829070,0.2,221.55,221.51,4.96896414]
[1758554829284,0.2,221.55,221.52,3.37048539]
[1758554829485,0.2,221.55,221.53,3.37048539]
[1758554829789,0.2,221.55,221.54,7.88434293]
[1758554830003,0.2,221.55,221.54,7.87759378]
[1758554831686,0.1,221.58,221.54,22.35404245]
[1758554831893,0.1,221.58,221.56,2.49180482]
[1758554832197,0.1,221.58,221.57,2.49180482]
[1758554832566,0.1,221.58,221.57,4.05010337]
[1758554832771,0.1,221.58,221.57,6.54190819]
[1758554833073,35.84,221.61,221.58,15.79564942]
[1758554833292,35.84,221.61,221.59,3.35010337]
[1758554833510,0.7,221.6,221.59,3.35010337]
[1758554833792,35.84,221.61,221.59,3.34430121]
[1758554834176,36.54,221.61,221.59,3.34430121]
[1758554834375,39.03180482,221.61,221.58,15.79564942]
[1758554834883,26.0,221.58,221.51,13.59559401]
[1758554835187,26.0,221.58,221.52,7.8552109]
[1758554835188,2.49180482,221.53,221.52,7.8552109]
[1758554835391,3.19180482,221.53,221.52,4.51426507]
[1758554835792,38.31180482,221.54,221.49,0.7]
[1758554835974,0.7,221.53,221.48,4.5148947]
[1758554836174,2.49180482,221.52,221.49,3.3402181]
[1758554836377,2.49180482,221.5,221.49,3.3402181]
[1758554836597,2.49180482,221.5,221.46,18.11104966]
[1758554836876,0.7,221.49,221.47,3.33956667]
[1758554837183,35.82,221.48,221.42,14.29559401]
[1758554837378,35.82,221.48,221.44,13.59559401]
[1758554837608,35.82,221.48,221.46,13.59559401]